fUSD/lending_fUSD_20260408
["ID","MTS","AMOUNT","RATE_DAILY","PERIOD"]
[420055254,1775637044809,-151.0,0.00014006,2]
[420055255,1775637044819,-743.50770149,0.00014006,2]
[420055256,1775637044830,-174.61919141,0.00014006,2]
[420055257,1775637044840,-170.0,0.00014006,2]
[420055258,1775637044849,-170.0,0.00014006,2]
[420055259,1775637044860,-170.0,0.00014006,2]
[420055260,1775637044869,-170.0,0.00014006,2]
[420055261,1775637044879,-170.0,0.00014006,2]
[420055262,1775637044889,-170.0,0.00014006,2]
[420055263,1775637044899,-170.0,0.00014006,2]
[420055264,1775637044909,-170.0,0.00014006,2]
[420055265,1775637044919,-170.0,0.00014006,2]
[420055266,1775637044928,-170.0,0.00014006,2]
[420055267,1775637044937,-170.0,0.00014006,2]
[420055268,1775637044947,-170.0,0.00014006,2]
[420055269,1775637044956,-170.0,0.00014006,2]
[420055270,1775637044966,-170.0,0.00014006,2]
[420055271,1775637044976,-170.0,0.00014006,2]
[420055272,1775637044985,-200.0,0.00014048,2]
[420055273,1775637044995,-500.0,0.00014061,2]
[420055274,1775637045005,-151.0,0.00014061,2]
[420055275,1775637045015,-411.12,0.00014108,2]
[420055276,1775637045025,-500.0,0.00014116,2]
[420055277,1775637045035,-151.0,0.00014116,2]
[420055278,1775637045045,-500.0,0.00014171,2]
[420055279,1775637045054,-151.0,0.00014171,2]
[420055280,1775637045063,-507.0,0.00014179,2]
[420055281,1775637045074,-299.0,0.00014188,5]
[420055282,1775637045083,-830.65684136,0.00014191,2]
[420055283,1775637045093,-500.0,0.00014226,2]
[420055284,1775637045102,-151.0,0.00014226,2]
[420055285,1775637045111,-10270.07323375,0.00014239,2]
[420055286,1775637045121,-150.0,0.00014247,2]
[420055287,1775637045131,-150.0,0.00014247,2]
[420055288,1775637045140,-1000.0,0.00014247,2]
[420055289,1775637045149,-1000.0,0.00014247,2]
[420055290,1775637045158,-697.87652131,0.00014247,2]
[420055291,1775637045168,-501.75332835,0.00014247,2]
[420055292,1775637045177,-1000.0,0.00014247,2]
[420055293,1775637045187,-1000.0,0.00014247,2]
[420055294,1775637045196,-1000.0,0.00014247,2]
[420055295,1775637045205,-500.0,0.00014281,2]
[420055296,1775637045214,-151.0,0.00014281,2]
[420055297,1775637045222,-500.0,0.00014336,2]
[420055298,1775637045232,-291.21499487,0.00014336,2]
[420055299,1775637045241,-1600.0,0.00014389,2]
[420055300,1775637045251,-500.0,0.00014391,2]
[420055301,1775637045261,-150.11484194,0.000144,2]
[420055302,1775637045269,-150.0,0.000144,2]
[420055303,1775637045279,-150.0,0.000144,2]
[420055304,1775637045288,-150.0,0.000144,2]
[420055305,1775637045297,-150.12907206,0.000144,2]
[420055306,1775637045307,-150.0,0.000144,2]
[420055307,1775637045316,-150.0,0.000144,2]
[420055308,1775637045326,-150.0,0.000144,2]
[420055309,1775637045335,-150.0,0.000144,2]
[420055310,1775637045345,-150.0,0.000144,2]
[420055311,1775637045354,-150.0,0.000144,2]
[420055312,1775637045364,-150.13966067,0.000144,2]
[420055313,1775637045374,-150.0,0.000144,2]
[420055314,1775637045383,-150.0,0.000144,2]
[420055315,1775637045393,-150.0,0.000144,2]
[420055316,1775637045403,-150.0,0.00014424,2]
[420055317,1775637045412,-150.0,0.00014428,2]
[420055318,1775637045422,-150.0,0.00014432,2]
[420055319,1775637045432,-150.0,0.00014437,2]
[420055320,1775637045441,-150.0,0.00014441,2]
[420055321,1775637045450,-150.0,0.00014442,2]
[420055322,1775637045460,-500.0,0.00014446,2]
[420055323,1775637045470,-150.0,0.00014448,2]
[420055324,1775637045479,-150.0,0.00014455,2]
[420055325,1775637045488,-150.0,0.00014464,2]
[420055326,1775637045498,-150.0,0.00014472,2]
[420055327,1775637045508,-150.0,0.00014474,2]
[420055328,1775637045517,-150.0,0.00014476,2]
[420055329,1775637045527,-150.0,0.00014476,2]
[420055330,1775637045536,-150.0,0.00014482,2]
[420055331,1775637045546,-150.0,0.00014483,2]
[420055332,1775637045556,-150.0,0.00014484,2]
[420055333,1775637045565,-150.0,0.00014496,2]
[420055334,1775637045575,-150.0,0.00014496,2]
[420055335,1775637045585,-500.0,0.00014501,2]
[420055336,1775637045594,-150.0,0.0001451,2]
[420055337,1775637045604,-150.0,0.00014512,2]
[420055338,1775637045613,-411.12,0.00014516,2]
[420055339,1775637045623,-150.0,0.00014519,2]
[420055340,1775637045633,-150.0,0.00014523,2]
[420055341,1775637045643,-150.0,0.00014523,2]
[420055342,1775637045654,-150.0,0.00014526,2]
[420055343,1775637045664,-150.0,0.00014528,2]
[420055344,1775637045674,-256.38,0.00014533,2]
[420055345,1775637045683,-150.0,0.00014538,2]
[420055346,1775637045693,-150.0,0.00014543,2]
[420055347,1775637045702,-150.0,0.00014549,2]
[420055348,1775637045712,-150.0,0.00014552,2]
[420055349,1775637045722,-150.0,0.00014552,2]
[420055350,1775637045731,-1280.88388878,0.00014554,2]
[420055351,1775637045741,-200.0,0.00014554,2]
[420055352,1775637045751,-187.78006525,0.00014554,2]
[420055353,1775637045761,-771.01748645,0.00014554,2]
[420055354,1775637045771,-181.08010149,0.00014554,2]
[420055355,1775637045782,-500.0,0.00014556,2]
[420055356,1775637045792,-150.0,0.0001456,2]
[420055357,1775637045802,-150.0,0.00014564,2]
[420055358,1775637045812,-150.0,0.00014566,2]
[420055359,1775637045822,-150.0,0.00014567,2]
[420055360,1775637045832,-150.0,0.00014568,2]
[420055361,1775637045842,-152.1118183,0.00014577,2]
[420055362,1775637045852,-150.0,0.00014586,2]
[420055363,1775637045862,-150.0,0.00014591,2]
[420055364,1775637045871,-150.0,0.00014592,2]
[420055365,1775637045880,-150.0,0.00014593,2]
[420055366,1775637045890,-150.0,0.00014605,2]
[420055367,1775637045900,-150.0,0.00014611,2]
[420055368,1775637045910,-500.0,0.00014611,2]
[420055369,1775637045920,-150.0,0.00014615,2]
[420055370,1775637045930,-150.0,0.00014621,2]
[420055371,1775637045940,-150.0,0.00014623,2]
[420055372,1775637045950,-150.0,0.00014624,2]
[420055373,1775637045960,-150.0,0.00014629,2]
[420055374,1775637045970,-150.0,0.00014629,2]
[420055375,1775637045979,-150.0,0.00014639,2]
[420055376,1775637045989,-155.32006583,0.00014641,2]
[420055377,1775637045999,-150.0,0.00014646,2]
[420055378,1775637046009,-150.0,0.00014646,2]
[420055379,1775637046019,-150.0,0.00014648,2]
[420055380,1775637046028,-191.226445,0.00014652,2]
[420055381,1775637046038,-178.33046,0.00014652,7]
[420055382,1775637046048,-150.0,0.00014653,2]
[420055383,1775637046058,-150.0,0.00014656,2]
[420055384,1775637046068,-150.0,0.0001466,2]
[420055385,1775637046079,-150.0,0.00014663,2]
[420055386,1775637046089,-500.0,0.00014666,2]
[420055387,1775637046099,-150.0,0.00014676,2]
[420055388,1775637046108,-160.86,0.00014685,2]
[420055389,1775637046119,-150.0,0.00014687,2]
[420055390,1775637046129,-150.0,0.00014687,2]
[420055391,1775637046138,-150.0,0.00014688,2]
[420055392,1775637046148,-150.0,0.00014695,2]
[420055393,1775637046158,-150.0,0.00014698,2]
[420055394,1775637046169,-150.0,0.00014703,2]
[420055395,1775637046179,-150.0,0.00014705,2]
[420055396,1775637046189,-150.0,0.00014705,2]
[420055397,1775637046198,-786.02,0.00014705,2]
[420055398,1775637046208,-150.0,0.0001471,2]
[420055399,1775637046217,-150.0,0.0001472,2]
[420055400,1775637046227,-500.0,0.00014721,2]
[420055401,1775637046236,-150.0,0.00014728,2]
[420055402,1775637046247,-150.0,0.00014731,2]
[420055403,1775637046257,-150.0,0.00014734,2]
[420055404,1775637046266,-150.0,0.00014735,2]
[420055405,1775637046276,-150.0,0.00014737,2]
[420055406,1775637046286,-150.0,0.00014752,2]
[420055407,1775637046295,-150.0,0.00014758,2]
[420055408,1775637046305,-150.0,0.00014759,2]
[420055409,1775637046314,-10270.07323375,0.00014759,2]
[420055410,1775637046324,-150.0,0.00014769,2]
[420055411,1775637046333,-150.0,0.00014769,2]
[420055412,1775637046343,-150.0,0.00014772,2]
[420055413,1775637046353,-500.0,0.00014776,2]
[420055414,1775637046362,-150.0,0.00014779,2]
[420055415,1775637046373,-150.0,0.00014781,2]
[420055416,1775637046383,-150.0,0.00014781,2]
[420055417,1775637046392,-150.0,0.00014782,2]
[420055418,1775637046402,-150.0,0.00014784,2]
[420055419,1775637046412,-150.0,0.00014786,2]
[420055420,1775637046422,-250.0,0.00014795,2]
[420055421,1775637046432,-1270.20022981,0.00014795,2]
[420055422,1775637046442,-501.00461758,0.00014795,2]
[420055423,1775637046452,-1500.0,0.00014795,2]
[420055424,1775637046462,-150.0,0.000148,2]
[420055425,1775637046472,-150.0,0.00014806,2]
[420055426,1775637046482,-256.38753708,0.00014808,2]
[420055427,1775637046492,-150.0,0.00014809,2]
[420055428,1775637046502,-150.0,0.0001481,2]
[420055429,1775637046512,-150.0,0.00014814,2]
[420055430,1775637046834,-150.0,0.00014816,2]
[420055431,1775637046845,-150.0,0.00014821,2]
[420055432,1775637046856,-500.0,0.00014822,2]
[420055433,1775637046866,-150.0,0.0001483,2]
[420055434,1775637046877,-150.0,0.00014841,2]
[420055435,1775637046887,-150.0,0.00014847,2]
[420055436,1775637046897,-150.0,0.00014848,2]
[420055437,1775637046907,-150.0,0.00014851,2]
[420055438,1775637046917,-3034.76,0.00014853,2]
[420055439,1775637046927,-863.61,0.00014853,2]
[420055440,1775637046936,-1674.23,0.00014853,2]
[420055441,1775637046946,-150.0,0.00014854,2]
[420055442,1775637046956,-150.0,0.00014857,2]
[420055443,1775637046966,-150.0,0.00014857,2]
[420055444,1775637046977,-150.0,0.00014863,2]
[420055445,1775637046987,-150.0,0.00014869,2]
[420055446,1775637046996,-150.0,0.00014878,2]
[420055447,1775637047007,-150.0,0.0001488,2]
[420055448,1775637047017,-150.0,0.00014884,2]
[420055449,1775637047026,-150.0,0.00014892,2]
[420055450,1775637047036,-150.0,0.00014892,2]
[420055451,1775637047046,-150.0,0.00014897,2]
[420055452,1775637047056,-150.0,0.00014901,2]
[420055453,1775637047066,-150.0,0.00014905,2]
[420055454,1775637047077,-150.0,0.00014912,2]
[420055455,1775637047087,-150.0,0.00014921,2]
[420055456,1775637047097,-150.0,0.00014924,2]
[420055457,1775637047107,-150.0,0.00014925,2]
[420055458,1775637047117,-150.0,0.00014933,2]
[420055459,1775637047127,-150.0,0.00014933,2]
[420055460,1775637047136,-150.0,0.00014933,2]
[420055461,1775637047146,-150.0,0.00014944,2]
[420055462,1775637047155,-228.4,0.00014947,2]
[420055463,1775637047165,-150.0,0.00014947,2]
[420055464,1775637047174,-150.0,0.00014949,2]
[420055465,1775637047184,-150.0,0.00014952,2]
[420055466,1775637047194,-150.0,0.00014958,2]
[420055467,1775637047205,-2000.0,0.00014961,2]
[420055468,1775637047215,-228.4,0.0001497,2]
[420055469,1775637047225,-150.0,0.00014973,2]
[420055470,1775637047235,-150.0,0.00014974,2]
[420055471,1775637047244,-1000.0,0.00014976,2]
[420055472,1775637047255,-1000.0,0.00014976,2]
[420055473,1775637047264,-1000.0,0.00014976,2]
[420055474,1775637047275,-1000.0,0.00014976,2]
[420055475,1775637047285,-1000.0,0.00014976,2]
[420055476,1775637047295,-1000.0,0.00014976,2]
[420055477,1775637047305,-1000.0,0.00014976,2]
[420055478,1775637047315,-1000.0,0.00014976,2]
[420055479,1775637047327,-1000.0,0.00014976,2]
[420055480,1775637047337,-827.0,0.00014976,2]
[420055481,1775637047347,-150.0,0.00014976,2]
[420055482,1775637047356,-786.02,0.00014979,2]
[420055483,1775637047368,-150.0,0.00014979,2]
[420055484,1775637047377,-150.0,0.00014989,2]
[420055485,1775637047387,-150.0,0.00014995,2]
[420055486,1775637047397,-2000.0,0.00014997,2]
[420055487,1775637047407,-2000.0,0.00014997,2]
[420055488,1775637047417,-2000.0,0.00014997,2]
[420055489,1775637047427,-2000.0,0.00014997,2]
[420055490,1775637047437,-2000.0,0.00014997,2]
[420055491,1775637047447,-2000.0,0.00014997,2]
[420055492,1775637047457,-2000.0,0.00014997,2]
[420055493,1775637047467,-2000.0,0.00014997,2]
[420055494,1775637047476,-2000.0,0.00014997,2]
[420055495,1775637047486,-2000.0,0.00014997,2]
[420055496,1775637047496,-150.0,0.00014997,2]
[420055497,1775637047506,-160.0,0.00015,2]
[420055498,1775637047516,-150.0,0.00015007,2]
[420055499,1775637047527,-150.0,0.00015008,2]
[420055500,1775637047537,-150.0,0.0001501,2]
[420055501,1775637047547,-150.0,0.0001501,2]
[420055502,1775637047557,-500.0,0.00015014,2]
[420055503,1775637047567,-150.0,0.00015015,2]
[420055504,1775637047576,-150.0,0.00015015,2]
[420055505,1775637047586,-150.0,0.00015021,2]
[420055506,1775637047595,-1252.0,0.00015026,2]
[420055507,1775637047605,-150.0,0.00015032,2]
[420055508,1775637047615,-150.0,0.00015033,2]
[420055509,1775637047625,-150.0,0.00015034,2]
[420055510,1775637047635,-150.0,0.0001504,2]
[420055511,1775637047645,-150.0,0.00015045,2]
[420055512,1775637047655,-830.65684136,0.00015046,2]
[420055513,1775637047665,-150.0,0.00015056,2]
[420055514,1775637047674,-150.0,0.00015062,2]
[420055515,1775637047684,-150.0,0.00015069,2]
[420055516,1775637047694,-150.0,0.0001507,2]
[420055517,1775637047704,-150.0,0.00015072,2]
[420055518,1775637047714,-150.0,0.00015074,2]
[420055519,1775637047724,-4609.0,0.00015079,2]
[420055520,1775637047733,-150.0,0.00015086,2]
[420055521,1775637047743,-150.0,0.00015086,2]
[420055522,1775637047752,-150.0,0.0001509,2]
[420055523,1775637047761,-150.0,0.00015093,2]
[420055524,1775637047771,-150.0,0.00015097,2]
[420055525,1775637047781,-222.1571,0.000151,2]
[420055526,1775637047791,-1328.27659266,0.00015102,2]
[420055527,1775637047801,-200.0,0.00015102,2]
[420055528,1775637047811,-194.72792766,0.00015102,2]
[420055529,1775637047822,-799.54513345,0.00015102,2]
[420055530,1775637047832,-187.78006525,0.00015102,2]
[420055531,1775637047841,-150.0,0.00015104,2]
[420055532,1775637047851,-985.91,0.00015104,2]
[420055533,1775637047860,-150.0,0.00015107,2]
[420055534,1775637047870,-150.0,0.00015116,2]
[420055535,1775637047879,-150.0,0.00015116,2]
[420055536,1775637047888,-150.0,0.00015117,2]
[420055537,1775637047898,-150.0,0.00015136,2]
[420055538,1775637047908,-150.0,0.00015138,2]
[420055539,1775637047919,-150.0,0.00015138,2]
[420055540,1775637047928,-150.0,0.0001514,2]
[420055541,1775637047938,-150.0,0.00015144,2]
[420055542,1775637047948,-150.0,0.00015145,2]
[420055543,1775637047957,-150.0,0.00015158,2]
[420055544,1775637047966,-150.0,0.00015162,2]
[420055545,1775637047976,-150.0,0.00015162,2]
[420055546,1775637047985,-150.0,0.00015164,2]
[420055547,1775637047994,-150.0,0.00015168,2]
[420055548,1775637048004,-150.0,0.00015172,2]
[420055549,1775637048013,-150.0,0.00015179,2]
[420055550,1775637048023,-150.0,0.00015181,2]
[420055551,1775637048033,-150.0,0.00015188,2]
[420055552,1775637048043,-1852.42,0.00015195,2]
[420055553,1775637048053,-150.0,0.000152,2]
[420055554,1775637048063,-150.0,0.000152,2]
[420055555,1775637048073,-150.0,0.000152,2]
[420055556,1775637048082,-150.0,0.000152,2]
[420055557,1775637048092,-150.0,0.000152,2]
[420055558,1775637048102,-150.0,0.000152,2]
[420055559,1775637048111,-150.0,0.00015212,2]
[420055560,1775637048122,-150.0,0.00015219,2]
[420055561,1775637048132,-150.0,0.00015221,2]
[420055562,1775637048142,-150.0,0.00015228,2]
[420055563,1775637048151,-150.0,0.00015232,2]
[420055564,1775637048161,-150.0,0.00015236,2]
[420055565,1775637048171,-150.0,0.00015238,2]
[420055566,1775637048181,-150.0,0.00015238,2]
[420055567,1775637048190,-150.0,0.00015242,2]
[420055568,1775637048199,-765.91,0.00015253,2]
[420055569,1775637048208,-184.51547503,0.00015255,2]
[420055570,1775637048219,-150.0,0.00015255,2]
[420055571,1775637048229,-150.0,0.00015256,2]
[420055572,1775637048239,-507.0,0.00015258,3]
[420055573,1775637048249,-150.0,0.0001526,2]
[420055574,1775637048259,-150.0,0.00015262,2]
[420055575,1775637048269,-150.0,0.00015262,2]
[420055576,1775637048278,-150.0,0.00015264,2]
[420055577,1775637048289,-10270.07323375,0.00015279,2]
[420055578,1775637048299,-150.0,0.00015283,2]
[420055579,1775637048309,-150.0,0.00015284,2]
[420055580,1775637048318,-150.0,0.00015284,2]
[420055581,1775637048329,-150.0,0.00015293,2]
[420055582,1775637048339,-150.0,0.00015296,2]
[420055583,1775637048349,-150.0,0.00015303,2]
[420055584,1775637048359,-150.0,0.00015307,2]
[420055585,1775637048369,-150.0,0.0001531,2]
[420055586,1775637048379,-150.0,0.00015314,2]
[420055587,1775637048389,-150.0,0.00015314,2]
[420055588,1775637048399,-150.0,0.00015326,2]
[420055589,1775637048408,-150.0,0.00015328,2]
[420055590,1775637048418,-150.0,0.0001533,2]
[420055591,1775637048428,-150.0,0.00015331,2]
[420055592,1775637048438,-150.0,0.00015338,2]
[420055593,1775637048449,-2000.0,0.00015342,2]
[420055594,1775637048458,-150.0,0.00015344,2]
[420055595,1775637048468,-150.0,0.00015355,2]
[420055596,1775637048479,-150.0,0.0001536,2]
[420055597,1775637048488,-150.0,0.00015366,2]
[420055598,1775637048498,-150.0,0.00015367,2]
[420055599,1775637048508,-150.0,0.00015368,2]
[420055600,1775637048517,-987.75,0.00015378,2]
[420055601,1775637048526,-150.0,0.00015379,2]
[420055602,1775637048535,-150.0,0.00015385,2]
[420055603,1775637048545,-150.0,0.00015385,2]
[420055604,1775637048555,-150.0,0.0001539,2]
[420055605,1775637048565,-150.0,0.0001539,2]
[420055606,1775637048575,-150.0,0.00015392,2]
[420055607,1775637048584,-150.0,0.00015393,2]
[420055608,1775637048594,-150.0,0.00015403,2]
[420055609,1775637048604,-150.0,0.00015405,2]
[420055610,1775637048613,-150.0,0.00015411,2]
[420055611,1775637048623,-150.0,0.00015421,2]
[420055612,1775637048633,-150.0,0.00015424,2]
[420055613,1775637048642,-150.0,0.00015426,2]
[420055614,1775637048652,-150.0,0.00015427,2]
[420055615,1775637048662,-150.0,0.00015442,2]
[420055616,1775637048671,-150.0,0.00015448,2]
[420055617,1775637048681,-150.0,0.00015451,2]
[420055618,1775637048691,-1000.0,0.00015452,2]
[420055619,1775637048700,-150.0,0.00015453,2]
[420055620,1775637048710,-150.0,0.00015456,2]
[420055621,1775637048719,-150.0,0.00015467,2]
[420055622,1775637048729,-150.0,0.00015467,2]
[420055623,1775637048739,-150.0,0.00015467,2]
[420055624,1775637048749,-150.0,0.00015475,2]
[420055625,1775637048759,-150.0,0.00015476,2]
[420055626,1775637048769,-150.0,0.00015479,2]
[420055627,1775637048778,-150.0,0.00015488,2]
[420055628,1775637048788,-150.0,0.00015495,2]
[420055629,1775637048799,-150.0,0.00015499,2]
[420055630,1775637048808,-181.06375366,0.000155,7]
[420055631,1775637048818,-150.0,0.00015503,2]
[420055632,1775637048828,-4000.0,0.00015507,2]
[420055633,1775637048837,-150.0,0.00015508,2]
[420055634,1775637048846,-150.0,0.00015508,2]
[420055635,1775637048856,-150.0,0.00015516,2]
[420055636,1775637048866,-150.0,0.0001552,2]
[420055637,1775637048875,-150.0,0.00015522,2]
[420055638,1775637048885,-150.0,0.00015531,2]
[420055639,1775637048894,-150.0,0.00015537,2]
[420055640,1775637048903,-150.0,0.00015543,2]
[420055641,1775637048913,-150.0,0.00015543,2]
[420055642,1775637048923,-150.0,0.00015546,2]
[420055643,1775637048933,-150.0,0.00015549,2]
[420055644,1775637048942,-150.0,0.00015552,2]
[420055645,1775637048952,-150.0,0.00015553,2]
[420055646,1775637048962,-150.0,0.00015559,2]
[420055647,1775637048972,-150.0,0.0001557,2]
[420055648,1775637048981,-150.0,0.00015579,2]
[420055649,1775637048991,-150.0,0.00015584,2]
[420055650,1775637049001,-150.0,0.00015586,2]
[420055651,1775637049010,-150.0,0.0001559,2]
[420055652,1775637049020,-150.0,0.00015591,2]
[420055653,1775637049031,-150.0,0.00015594,2]
[420055654,1775637049040,-160.0,0.00015595,2]
[420055655,1775637049050,-150.0,0.000156,2]
[420055656,1775637049060,-150.0,0.00015614,2]
[420055657,1775637049070,-150.0,0.00015616,2]
[420055658,1775637049080,-150.0,0.00015618,2]
[420055659,1775637049089,-150.0,0.00015619,2]
[420055660,1775637049099,-150.0,0.00015619,2]
[420055661,1775637049109,-150.0,0.00015621,2]
[420055662,1775637049119,-150.0,0.00015628,2]
[420055663,1775637049130,-150.0,0.00015631,2]
[420055664,1775637049140,-150.0,0.00015631,2]
[420055665,1775637049150,-150.0,0.00015641,2]
[420055666,1775637049159,-150.0,0.00015642,2]
[420055667,1775637049169,-150.0,0.00015648,2]
[420055668,1775637049179,-1377.42282659,0.0001565,2]
[420055669,1775637049189,-200.0,0.0001565,2]
[420055670,1775637049199,-249.38762162,0.0001565,2]
[420055671,1775637049346,-829.12830338,0.0001565,2]
[420055672,1775637049356,-194.72792766,0.0001565,2]
[420055673,1775637049367,-150.0,0.00015663,2]
[420055674,1775637049376,-150.0,0.00015665,2]
[420055675,1775637049385,-150.0,0.00015666,2]
[420055676,1775637049395,-150.0,0.00015669,2]
[420055677,1775637049404,-150.0,0.00015672,2]
[420055678,1775637049414,-150.0,0.0001568,2]
[420055679,1775637049423,-215.39830433,0.00015687,2]
[420055680,1775637049433,-823.97,0.00015687,2]
[420055681,1775637049442,-568.74,0.00015687,2]
[420055683,1775637049452,-150.0,0.0001569,2]
[420055685,1775637049461,-150.0,0.00015695,2]
[420055686,1775637049470,-150.0,0.00015695,2]
[420055687,1775637049480,-150.0,0.00015697,2]
[420055688,1775637049489,-150.0,0.00015702,2]
[420055689,1775637049498,-150.0,0.00015705,2]
[420055690,1775637049508,-150.0,0.00015712,2]
[420055691,1775637049518,-150.0,0.00015713,2]
[420055692,1775637049527,-150.0,0.00015713,2]
[420055693,1775637049536,-160.86,0.00015715,2]
[420055694,1775637049545,-150.0,0.00015724,2]
[420055695,1775637049554,-226.0,0.00015725,3]
[420055696,1775637049563,-150.0,0.00015737,2]
[420055697,1775637049573,-150.0,0.0001574,2]
[420055698,1775637049583,-150.0,0.00015744,2]
[420055699,1775637049592,-350.0,0.00015744,2]
[420055700,1775637049602,-150.0,0.00015747,2]
[420055701,1775637049611,-150.0,0.00015752,2]
[420055702,1775637049621,-150.0,0.00015754,2]
[420055703,1775637049630,-150.0,0.00015754,2]
[420055704,1775637049639,-150.0,0.00015761,2]
[420055705,1775637049648,-150.0,0.00015771,2]
[420055706,1775637049658,-150.0,0.00015771,2]
[420055707,1775637049668,-150.0,0.00015776,2]
[420055708,1775637049678,-150.0,0.00015777,2]
[420055709,1775637049687,-150.0,0.00015779,2]
[420055710,1775637049695,-1000.0,0.00015784,2]
[420055711,1775637049705,-150.0,0.00015785,2]
[420055712,1775637049715,-150.0,0.00015789,2]
[420055713,1775637049725,-150.0,0.00015795,2]
[420055714,1775637049734,-1106.0,0.000158,5]
[420055715,1775637049743,-1294.0,0.000158,5]
[420055716,1775637049752,-715.89742388,0.000158,2]
[420055717,1775637049762,-150.0,0.00015807,2]
[420055718,1775637049771,-500.0,0.00015808,2]
[420055719,1775637049780,-500.0,0.00015808,2]
[420055720,1775637049789,-396.4808442,0.00015808,2]
[420055721,1775637049799,-1000.0,0.00015808,2]
[420055722,1775637049809,-150.0,0.00015808,2]
[420055723,1775637049818,-150.0,0.00015809,2]
[420055724,1775637049828,-150.0,0.00015814,2]
[420055725,1775637049837,-1000.0,0.0001582,2]
[420055726,1775637049847,-1600.0,0.00015828,2]
[420055727,1775637049856,-150.0,0.00015832,2]
[420055728,1775637049865,-150.0,0.00015833,2]
[420055729,1775637049875,-150.0,0.00015834,2]
[420055730,1775637049884,-150.0,0.00015836,2]
[420055731,1775637049894,-150.0,0.0001584,2]
[420055732,1775637049903,-1314.68071,0.0001584,2]
[420055733,1775637049913,-1314.68072,0.0001584,2]
[420055734,1775637049923,-1314.68072,0.0001584,2]
[420055735,1775637049932,-1314.68072,0.0001584,2]
[420055736,1775637049941,-1314.68071,0.0001584,2]
[420055737,1775637049951,-1314.68072,0.0001584,2]
[420055738,1775637049960,-150.0,0.00015848,2]
[420055739,1775637049970,-150.0,0.00015848,2]
[420055740,1775637049980,-150.0,0.00015851,2]
[420055741,1775637049989,-150.0,0.00015857,2]
[420055742,1775637049998,-163.8001,0.0001586,2]
[420055743,1775637050008,-150.0,0.00015862,2]
[420055744,1775637050017,-238.38,0.00015869,4]
[420055745,1775637050027,-163.8001,0.0001587,2]
[420055746,1775637050036,-500.0,0.00015872,2]
[420055747,1775637050045,-500.0,0.00015872,2]
[420055748,1775637050055,-150.0,0.00015872,2]
[420055749,1775637050065,-150.0,0.00015874,2]
[420055750,1775637050075,-150.0,0.00015877,2]
[420055751,1775637050085,-150.0,0.00015877,2]
[420055752,1775637050094,-150.0,0.00015881,2]
[420055753,1775637050104,-150.0,0.00015888,2]
[420055754,1775637050114,-150.0,0.0001589,2]
[420055755,1775637050124,-500.0,0.0001589,2]